fUSD/lending_fUSD_20250721
["ID","MTS","AMOUNT","RATE_DAILY","PERIOD"]
[373593751,1753056014183,152.96,0.000229,31]
[373593752,1753056014611,152.96,0.000229,31]
[373593753,1753056014686,152.96,0.000229,31]
[373593754,1753056014757,152.96,0.000229,31]
[373593755,1753056014827,152.96,0.000229,31]
[373593756,1753056014901,152.96,0.000229,31]
[373593757,1753056014978,152.96,0.000229,31]
[373593762,1753056332114,-157.73081756,0.00016913,2]
[373593763,1753056350077,-157.45938144,0.00016913,2]
[373593764,1753056350099,-151.0,0.00017,2]
[373593765,1753056350120,-65.26838773,0.00017334,2]
[373593766,1753056437190,-236.68260443,0.0001718,2]
[373593767,1753056444533,-439.74739557,0.0001718,2]
[373593768,1753056444554,-655.8,0.00017187,2]
[373593769,1753056444577,-42.84274362,0.00017333,2]
[373593770,1753056454090,-421.15725638,0.00017333,2]
[373593771,1753056454113,-300.0,0.00017333,2]
[373593772,1753056454138,-84.73161227,0.00017334,2]
[373593773,1753056454159,-41.30188138,0.00017334,2]
[373593777,1753056621458,152.98,0.000229,31]
[373593778,1753056621516,152.98,0.000229,31]
[373593779,1753056621576,152.98,0.000229,31]
[373593780,1753056621742,152.98,0.000229,31]
[373593781,1753056621826,152.98,0.000229,31]
[373593782,1753056621891,152.98,0.000229,31]
[373593783,1753056621960,152.98,0.000229,31]
[373593787,1753056631836,-190.71,0.00017204,2]
[373593788,1753056631845,-511.0,0.00017259,2]
[373593789,1753056631855,-277.0,0.00017333,2]
[373593790,1753056631865,-1200.0,0.00017333,2]
[373593791,1753056631874,-108.69811862,0.00017334,2]
[373593792,1753056631884,-150.0,0.00017334,2]
[373593793,1753056631893,-150.0,0.00017334,2]
[373593794,1753056631972,-150.0,0.00017334,2]
[373593795,1753056631983,-150.0,0.00017334,2]
[373593796,1753056631992,-150.0,0.00017334,2]
[373593797,1753056632001,-150.0,0.00017334,2]
[373593798,1753056632010,-150.0,0.00017334,2]
[373593799,1753056632019,-150.0,0.00017334,2]
[373593800,1753056632033,-150.0,0.00017377,2]
[373593801,1753056632043,-150.0,0.0001742,2]
[373593802,1753056632052,-150.0,0.00017448,2]
[373593803,1753056632061,-150.0,0.00017463,2]
[373593804,1753056632070,-347.0,0.000175,2]
[373593805,1753056632079,-150.0,0.00017505,2]
[373593806,1753056632089,-150.0,0.00017509,2]
[373593807,1753056632098,-150.0,0.00017527,2]
[373593808,1753056632108,-390.71,0.00017544,2]
[373593809,1753056632117,-150.0,0.00017548,2]
[373593810,1753056632126,-150.0,0.00017561,2]
[373593811,1753056632135,-2500.0,0.00017566,2]
[373593812,1753056632144,-4289.59041457,0.00017572,2]
[373593813,1753056632153,-166.48,0.00017589,2]
[373593814,1753056632162,-150.0,0.00017591,2]
[373593815,1753056632172,-580.61,0.00017611,2]
[373593816,1753056632181,-150.0,0.00017634,2]
[373593817,1753056632190,-666.0,0.00017654,2]
[373593818,1753056632199,-150.0,0.00017655,2]
[373593819,1753056632209,-5527.99,0.00017662,2]
[373593820,1753056632218,-550.0,0.00017674,2]
[373593821,1753056632227,-150.0,0.00017674,2]
[373593822,1753056632236,-150.0,0.00017677,2]
[373593823,1753056632246,-150.0,0.00017684,2]
[373593824,1753056632256,-1000.0,0.00017693,2]
[373593825,1753056632265,-150.0,0.00017719,2]
[373593826,1753056632278,-150.0,0.00017719,2]
[373593827,1753056632290,-150.0,0.0001775,2]
[373593828,1753056632301,-150.0,0.00017762,2]
[373593829,1753056632311,-151.0,0.00017787,2]
[373593830,1753056632320,-150.0,0.00017787,2]
[373593831,1753056632330,-150.0,0.00017805,2]
[373593833,1753056632339,-150.0,0.00017848,2]
[373593835,1753056632348,-150.0,0.0001786,2]
[373593837,1753056632357,-150.0,0.00017891,2]
[373593839,1753056632368,-150.0,0.00017901,2]
[373593841,1753056632378,-150.0,0.00017912,2]
[373593843,1753056632387,-150.0,0.00017933,2]
[373593844,1753056632396,-150.0,0.00017976,2]
[373593846,1753056632405,-150.0,0.00017976,2]
[373593848,1753056632415,-150.0,0.00018014,2]
[373593849,1753056632424,-150.0,0.00018019,2]
[373593850,1753056632433,-150.0,0.00018035,2]
[373593852,1753056632443,-150.0,0.00018062,2]
[373593854,1753056632452,-150.0,0.00018105,2]
[373593856,1753056632461,-150.0,0.00018105,2]
[373593858,1753056632470,-911.98,0.00018108,2]
[373593860,1753056632480,-346.81,0.00018121,2]
[373593862,1753056632489,-150.0,0.00018127,2]
[373593864,1753056632498,-231.28369723,0.00018138,2]
[373593865,1753056632507,-7142.856,0.00018138,2]
[373593866,1753056632516,-150.0,0.00018147,2]
[373593867,1753056632528,-166.87,0.00018152,2]
[373593868,1753056632538,-150.0,0.0001819,2]
[373593870,1753056632546,-150.0,0.0001821,2]
[373593872,1753056632555,-326.82970741,0.00018226,2]
[373593873,1753056632564,-151.0,0.00018226,2]
[373593874,1753056632574,-151.0,0.00018226,2]
[373593875,1753056632583,-151.0,0.00018226,2]
[373593876,1753056632592,-151.0,0.00018226,2]
[373593877,1753056632602,-285.23262847,0.00018226,2]
[373593878,1753056632611,-500.0,0.00018226,2]
[373593879,1753056632621,-500.0,0.00018226,2]
[373593880,1753056632631,-500.0,0.00018226,2]
[373593881,1753056632641,-500.0,0.00018226,2]
[373593882,1753056632650,-500.0,0.00018226,2]
[373593883,1753056632659,-500.0,0.00018226,2]
[373593884,1753056632668,-500.0,0.00018226,2]
[373593885,1753056632678,-500.0,0.00018226,2]
[373593886,1753056632687,-500.0,0.00018226,2]
[373593887,1753056632696,-500.0,0.00018226,2]
[373593888,1753056632705,-320.93458061,0.00018226,2]
[373593889,1753056632715,-150.0,0.00018233,2]
[373593890,1753056632724,-2500.0,0.00018239,2]
[373593891,1753056632733,-150.0,0.00018241,2]
[373593892,1753056632743,-2005.4282717,0.00018273,2]
[373593893,1753056632752,-150.0,0.00018276,2]
[373593894,1753056632762,-150.0,0.00018297,2]
[373593895,1753056632771,-150.0,0.00018297,2]
[373593896,1753056632783,-150.0,0.00018297,2]
[373593897,1753056632793,-150.0,0.00018319,2]
[373593898,1753056632802,-289.82,0.00018329,2]
[373593899,1753056632812,-150.0,0.00018354,2]
[373593900,1753056632821,-150.0,0.00018361,2]
[373593901,1753056632830,-150.0,0.00018385,2]
[373593902,1753056632840,-150.0,0.00018404,2]
[373593903,1753056632849,-390.71,0.00018422,2]
[373593904,1753056632859,-150.0,0.00018447,2]
[373593905,1753056632868,-150.0,0.00018467,2]
[373593906,1753056632877,-150.0,0.0001849,2]
[373593907,1753056632887,-150.0,0.0001849,2]
[373593908,1753056632897,-4475.0,0.000185,3]
[373593909,1753056632906,-150.0,0.00018533,2]
[373593910,1753056632915,-150.0,0.00018554,2]
[373593912,1753056632924,-150.0,0.0001856,2]
[373593914,1753056632933,-150.0,0.00018575,2]
[373593916,1753056632943,-150.0,0.0001858,2]
[373593917,1753056632952,-869.34915145,0.0001861,2]
[373593919,1753056632962,-150.0,0.00018618,2]
[373593921,1753056632971,-150.0,0.00018618,2]
[373593923,1753056632980,-150.0,0.00018618,2]
[373593925,1753056632989,-1000.0,0.0001863,2]
[373593927,1753056632998,-1722.47,0.0001863,2]
[373593928,1753056633007,-150.0,0.00018659,2]
[373593929,1753056633016,-150.0,0.00018661,2]
[373593930,1753056633028,-10282.14037764,0.0001868,2]
[373593931,1753056633038,-150.0,0.00018682,2]
[373593932,1753056633047,-7407.141672,0.00018686,2]
[373593933,1753056633057,-150.0,0.00018694,2]
[373593934,1753056633066,-150.0,0.00018704,2]
[373593935,1753056633076,-4087.65366595,0.00018707,2]
[373593936,1753056633085,-150.0,0.00018735,2]
[373593937,1753056633095,-150.0,0.00018737,2]
[373593938,1753056633104,-150.0,0.00018747,2]
[373593939,1753056633113,-1711.0,0.0001875,2]
[373593940,1753056633123,-300.0,0.0001877,2]
[373593941,1753056633131,-340.0,0.0001878,2]
[373593942,1753056633140,-150.0,0.00018789,2]
[373593943,1753056633150,-152.47,0.00018795,2]
[373593944,1753056633160,-158.69,0.00018795,2]
[373593945,1753056633169,-332.64,0.00018795,2]
[373593946,1753056633180,-150.0,0.00018807,2]
[373593947,1753056633189,-150.0,0.00018832,2]
[373593948,1753056633199,-200.0,0.0001887,2]
[373593949,1753056633209,-295.05024547,0.00018874,2]
[373593950,1753056633218,-150.0,0.00018875,2]
[373593951,1753056633228,-150.0,0.00018875,2]
[373593952,1753056633238,-631.08910268,0.00018881,2]
[373593953,1753056633247,-5511.0,0.000189,5]
[373593954,1753056633257,-1957.23015895,0.000189,2]
[373593955,1753056633267,-152.16627331,0.000189,2]
[373593956,1753056633277,-200.0,0.00018903,2]
[373593957,1753056633287,-150.0,0.0001891,2]
[373593958,1753056633300,-631.08910268,0.00018911,2]
[373593959,1753056633310,-224.448879,0.00018915,2]
[373593960,1753056633319,-150.0,0.00018918,2]
[373593961,1753056633329,-295.05024547,0.00018919,2]
[373593962,1753056633339,-150.0,0.0001892,2]
[373593963,1753056633349,-152.16627323,0.00018936,2]
[373593964,1753056633359,-150.0,0.00018939,2]
[373593965,1753056633368,-200.0,0.0001895,2]
[373593966,1753056633379,-295.05024547,0.00018952,2]
[373593967,1753056633389,-150.0,0.00018961,2]
[373593968,1753056633398,-631.08910268,0.00018961,2]
[373593969,1753056633407,-200.0,0.0001897,2]
[373593970,1753056633417,-2699.629,0.00018978,2]
[373593971,1753056633426,-179.267,0.00018978,2]
[373593972,1753056633436,-183.22461961,0.00018978,2]
[373593973,1753056633445,-200.0,0.00018981,2]
[373593974,1753056633455,-1000.0,0.00018985,2]
[373593975,1753056633464,-300.0,0.00018985,2]
[373593976,1753056633474,-200.0,0.00018986,2]
[373593977,1753056633483,-1711.0,0.0001899,2]
[373593978,1753056633492,-118524.16686838,0.00019,2]
[373593979,1753056633501,-3914.36,0.00019,2]
[373593980,1753056633511,-150.0,0.00019003,2]
[373593981,1753056633520,-289.82,0.00019016,2]
[373593982,1753056633531,-1680.0,0.00019019,2]
[373593983,1753056633540,-150.0,0.00019034,2]
[373593984,1753056633550,-150.0,0.00019046,2]
[373593985,1753056633560,-163.01,0.00019047,2]
[373593986,1753056633569,-150.0,0.00019068,2]
[373593987,1753056633578,-418.74,0.00019068,2]
[373593988,1753056633588,-476.8747822,0.00019073,2]
[373593989,1753056633597,-839.31074571,0.00019073,2]
[373593990,1753056633607,-210.86573235,0.00019073,2]
[373593991,1753056633616,-2267.04635352,0.00019078,2]
[373593992,1753056633625,-423.11297017,0.00019078,2]
[373593993,1753056633635,-193.68981142,0.00019078,2]
[373593994,1753056633644,-157.18437813,0.00019078,2]
[373593995,1753056633653,-82075.9177,0.00019078,2]
[373593996,1753056633663,-5000.0,0.00019078,2]
[373593997,1753056633672,-150.0,0.00019085,2]
[373593998,1753056633681,-1167.0,0.00019087,2]
[373593999,1753056633690,-889.0,0.00019087,2]
[373594000,1753056633700,-150.0,0.00019089,2]
[373594001,1753056633709,-2000.0,0.00019099,2]
[373594002,1753056633720,-5871.54,0.000191,2]
[373594003,1753056633730,-150.0,0.00019102,2]
[373594004,1753056633743,-1711.0,0.00019122,2]
[373594005,1753056633752,-6050.0,0.00019129,2]
[373594006,1753056633761,-4126.0,0.00019129,2]
[373594007,1753056633771,-862.0,0.00019129,2]
[373594008,1753056633783,-150.0,0.00019132,2]
[373594009,1753056633793,-150.0,0.00019142,2]
[373594010,1753056633803,-150.0,0.00019147,2]
[373594011,1753056633813,-166.87,0.00019151,2]
[373594012,1753056633822,-2267.04635347,0.00019151,2]
[373594013,1753056633832,-150.0,0.00019154,2]
[373594014,1753056633841,-500.0,0.00019173,2]
[373594015,1753056633851,-500.0,0.00019173,2]
[373594016,1753056633860,-500.0,0.00019173,2]
[373594017,1753056633870,-506.37655078,0.00019173,2]
[373594018,1753056633879,-166.22579145,0.00019173,2]
[373594019,1753056633889,-502.93588463,0.00019173,2]
[373594020,1753056633898,-161.1808015,0.00019173,2]
[373594021,1753056633908,-439.88227139,0.00019173,2]
[373594022,1753056633917,-500.0,0.00019173,2]
[373594023,1753056633927,-501.86019973,0.00019173,2]
[373594024,1753056633937,-500.0,0.00019173,2]
[373594025,1753056633946,-344.589417,0.00019173,2]
[373594026,1753056633956,-203.26352181,0.00019173,2]
[373594027,1753056633965,-500.0,0.00019173,2]
[373594028,1753056633975,-307.19069525,0.00019173,2]
[373594029,1753056633984,-150.0,0.00019175,2]
[373594030,1753056633994,-300.0,0.00019177,2]
[373594031,1753056634004,-480.0,0.00019178,2]
[373594032,1753056634014,-480.0,0.00019178,2]
[373594033,1753056634024,-480.0,0.00019178,2]
[373594034,1753056634035,-480.0,0.00019178,2]
[373594035,1753056634045,-480.0,0.00019178,2]
[373594036,1753056634054,-461.23649219,0.00019178,2]
[373594037,1753056634064,-462.73206383,0.00019178,2]
[373594038,1753056634074,-480.0,0.00019178,2]
[373594039,1753056634084,-480.0,0.00019178,2]
[373594040,1753056634094,-480.0,0.00019178,2]
[373594041,1753056634103,-480.0,0.00019178,2]
[373594042,1753056634112,-480.0,0.00019178,2]
[373594043,1753056634123,-480.0,0.00019178,2]
[373594044,1753056634132,-480.0,0.00019178,2]
[373594045,1753056634141,-480.0,0.00019178,2]
[373594046,1753056634151,-480.0,0.00019178,2]
[373594047,1753056634160,-463.50212109,0.00019178,2]
[373594048,1753056634170,-480.0,0.00019178,2]
[373594049,1753056634179,-493.03493162,0.00019178,2]
[373594050,1753056634189,-480.0,0.00019178,2]
[373594051,1753056634198,-480.0,0.00019178,2]
[373594052,1753056634208,-573.09684395,0.00019178,2]
[373594053,1753056634217,-441.43735828,0.00019178,2]
[373594054,1753056634227,-480.0,0.00019178,2]
[373594055,1753056634236,-480.0,0.00019178,2]
[373594056,1753056634245,-480.0,0.00019178,2]
[373594057,1753056634255,-480.0,0.00019178,2]
[373594058,1753056634264,-214.93164715,0.00019178,2]
[373594059,1753056634274,-480.0,0.00019178,2]
[373594060,1753056634287,-440.0,0.00019178,2]
[373594061,1753056634302,-460.0,0.00019178,2]
[373594062,1753056634312,-480.0,0.00019178,2]
[373594063,1753056634321,-463.10265467,0.00019178,2]
[373594064,1753056634332,-440.0,0.00019178,2]
[373594065,1753056634343,-462.10989001,0.00019178,2]
[373594066,1753056634352,-480.0,0.00019178,2]
[373594067,1753056634362,-2000.0,0.00019178,2]
[373594068,1753056634374,-520.0,0.00019178,2]
[373594069,1753056634385,-480.0,0.00019178,2]
[373594070,1753056634394,-480.0,0.00019178,2]
[373594071,1753056634404,-480.0,0.00019178,2]
[373594072,1753056634413,-480.0,0.00019178,2]
[373594073,1753056634422,-480.0,0.00019178,2]
[373594074,1753056634432,-480.0,0.00019178,2]
[373594075,1753056634441,-464.50280447,0.00019178,2]
[373594076,1753056634451,-460.0,0.00019178,2]
[373594077,1753056634460,-466.66228033,0.00019178,2]
[373594078,1753056634470,-480.0,0.00019178,2]
[373594079,1753056634480,-480.0,0.00019178,2]
[373594080,1753056634489,-480.0,0.00019178,2]
[373594081,1753056634498,-199.65093908,0.00019178,2]
[373594082,1753056634507,-480.0,0.00019178,2]
[373594083,1753056634516,-480.0,0.00019178,2]
[373594084,1753056634528,-480.0,0.00019178,2]
[373594085,1753056634537,-480.0,0.00019178,2]
[373594086,1753056634547,-480.0,0.00019178,2]
[373594087,1753056634556,-480.0,0.00019178,2]
[373594088,1753056634566,-480.0,0.00019178,2]
[373594089,1753056634575,-480.0,0.00019178,2]
[373594090,1753056634584,-480.0,0.00019178,2]
[373594091,1753056634593,-480.0,0.00019178,2]
[373594092,1753056634603,-480.0,0.00019178,2]
[373594093,1753056634612,-480.0,0.00019178,2]
[373594094,1753056634621,-480.0,0.00019178,2]
[373594095,1753056634631,-522.57,0.00019178,2]
[373594096,1753056634641,-460.0,0.00019178,2]
[373594097,1753056634650,-480.0,0.00019178,2]
[373594098,1753056634659,-480.0,0.00019178,2]
[373594099,1753056634669,-480.0,0.00019178,2]
[373594100,1753056634678,-480.0,0.00019178,2]
[373594101,1753056634688,-274.41877075,0.00019178,2]
[373594102,1753056634698,-585.71,0.00019178,2]
[373594103,1753056634707,-480.0,0.00019178,2]
[373594104,1753056634717,-500.0,0.00019178,2]
[373594105,1753056634726,-519.18,0.00019178,2]
[373594106,1753056634735,-462.78979824,0.00019178,2]
[373594107,1753056634744,-480.0,0.00019178,2]
[373594108,1753056634754,-480.0,0.00019178,2]
[373594109,1753056634763,-480.0,0.00019178,2]
[373594110,1753056634773,-480.0,0.00019178,2]
[373594111,1753056634783,-480.0,0.00019178,2]
[373594112,1753056634793,-480.0,0.00019178,2]
[373594113,1753056634802,-460.0,0.00019178,2]
[373594114,1753056634812,-460.0,0.00019178,2]
[373594115,1753056634821,-478.5525709,0.00019178,2]
[373594116,1753056634831,-463.54386585,0.00019178,2]
[373594117,1753056634840,-480.0,0.00019178,2]
[373594118,1753056634850,-480.0,0.00019178,2]
[373594119,1753056634859,-460.0,0.00019178,2]
[373594120,1753056634868,-480.0,0.00019178,2]
[373594121,1753056634877,-480.0,0.00019178,2]
[373594122,1753056634887,-480.0,0.00019178,2]
[373594123,1753056634896,-480.0,0.00019178,2]
[373594124,1753056634905,-480.0,0.00019178,2]
[373594125,1753056634915,-451.58832023,0.00019178,2]
[373594126,1753056634925,-480.0,0.00019178,2]
[373594127,1753056634935,-480.0,0.00019178,2]
[373594128,1753056634944,-480.0,0.00019178,2]
[373594129,1753056634954,-480.0,0.00019178,2]
[373594130,1753056634963,-480.0,0.00019178,2]
[373594131,1753056634973,-480.0,0.00019178,2]
[373594132,1753056634982,-480.0,0.00019178,2]
[373594133,1753056634992,-480.0,0.00019178,2]
[373594134,1753056635002,-480.0,0.00019178,2]
[373594135,1753056635011,-480.0,0.00019178,2]
[373594136,1753056635022,-480.0,0.00019178,2]
[373594137,1753056635032,-480.0,0.00019178,2]
[373594138,1753056635041,-480.0,0.00019178,2]
[373594139,1753056635051,-480.0,0.00019178,2]
[373594140,1753056635060,-505.18,0.00019178,2]
[373594141,1753056635069,-480.0,0.00019178,2]
[373594142,1753056635080,-480.0,0.00019178,2]
[373594143,1753056635089,-480.0,0.00019178,2]
[373594144,1753056635099,-480.0,0.00019178,2]
[373594145,1753056635110,-480.0,0.00019178,2]
[373594146,1753056635119,-467.1355219,0.00019178,2]
[373594147,1753056635130,-480.0,0.00019178,2]
[373594148,1753056635140,-460.0,0.00019178,2]
[373594149,1753056635149,-480.0,0.00019178,2]
[373594150,1753056635159,-460.0,0.00019178,2]
[373594151,1753056635168,-460.0,0.00019178,2]
[373594152,1753056635177,-480.0,0.00019178,2]
[373594153,1753056635186,-480.0,0.00019178,2]
[373594154,1753056635196,-480.0,0.00019178,2]
[373594155,1753056635205,-480.0,0.00019178,2]
[373594156,1753056635214,-480.0,0.00019178,2]
[373594157,1753056635225,-480.0,0.00019178,2]
[373594158,1753056635235,-1000.0,0.00019178,2]
[373594159,1753056635244,-480.0,0.00019178,2]
[373594160,1753056635253,-163.06353834,0.00019178,2]
[373594161,1753056635263,-461.76176709,0.00019178,2]
[373594162,1753056635272,-480.0,0.00019178,2]
[373594163,1753056635282,-480.0,0.00019178,2]
[373594164,1753056635293,-480.0,0.00019178,2]
[373594165,1753056635303,-480.0,0.00019178,2]
[373594166,1753056635311,-523.88,0.00019178,2]
[373594167,1753056635322,-480.0,0.00019178,2]
[373594168,1753056635333,-480.0,0.00019178,2]
[373594169,1753056635343,-480.0,0.00019178,2]
[373594170,1753056635353,-480.0,0.00019178,2]
[373594171,1753056635362,-480.0,0.00019178,2]
[373594172,1753056635373,-480.0,0.00019178,2]
[373594173,1753056635384,-480.0,0.00019178,2]
[373594174,1753056635393,-480.0,0.00019178,2]
[373594175,1753056635402,-480.0,0.00019178,2]
[373594176,1753056635411,-1193.3,0.00019178,2]
[373594177,1753056635421,-480.0,0.00019178,2]
[373594178,1753056635431,-460.0,0.00019178,2]
[373594179,1753056635441,-480.0,0.00019178,2]
[373594180,1753056635451,-480.0,0.00019178,2]
[373594181,1753056635460,-480.0,0.00019178,2]
[373594182,1753056635470,-460.0,0.00019178,2]
[373594183,1753056635480,-460.0,0.00019178,2]
[373594184,1753056635491,-480.0,0.00019178,2]
[373594185,1753056635499,-480.0,0.00019178,2]
[373594186,1753056635509,-480.0,0.00019178,2]
[373594187,1753056635519,-876.39,0.00019178,2]
[373594188,1753056635531,-480.0,0.00019178,2]
[373594189,1753056635540,-480.0,0.00019178,2]
[373594190,1753056635549,-480.0,0.00019178,2]
[373594191,1753056635558,-360.0,0.00019178,2]
[373594192,1753056635567,-480.0,0.00019178,2]
[373594193,1753056635576,-480.0,0.00019178,2]
[373594194,1753056635587,-494.48755176,0.00019178,2]
[373594195,1753056635597,-460.0,0.00019178,2]
[373594196,1753056635606,-480.0,0.00019178,2]
[373594197,1753056635616,-480.0,0.00019178,2]
[373594198,1753056635625,-460.0,0.00019178,2]
[373594199,1753056635635,-480.0,0.00019178,2]
[373594200,1753056635644,-480.0,0.00019178,2]
[373594201,1753056635653,-669.24,0.00019178,2]
[373594202,1753056635662,-585.61333344,0.00019178,2]
[373594203,1753056635672,-480.0,0.00019178,2]
[373594204,1753056635682,-480.0,0.00019178,2]
[373594205,1753056635692,-460.0,0.00019178,2]
[373594206,1753056635701,-480.0,0.00019178,2]
[373594207,1753056635712,-480.0,0.00019178,2]
[373594208,1753056635722,-480.0,0.00019178,2]
[373594209,1753056635733,-480.0,0.00019178,2]
[373594210,1753056635744,-948.75,0.00019178,2]
[373594211,1753056635754,-480.0,0.00019178,2]
[373594212,1753056635764,-480.0,0.00019178,2]
[373594213,1753056635774,-480.0,0.00019178,2]
[373594214,1753056635785,-576.18,0.00019178,2]
[373594215,1753056635794,-480.0,0.00019178,2]
[373594216,1753056635804,-508.84921354,0.00019178,2]
[373594217,1753056635813,-573.98,0.00019178,2]
[373594218,1753056635822,-480.0,0.00019178,2]
[373594219,1753056635831,-480.0,0.00019178,2]
[373594220,1753056635841,-480.0,0.00019178,2]
[373594221,1753056635851,-480.0,0.00019178,2]
[373594222,1753056635860,-480.0,0.00019178,2]
[373594223,1753056635869,-480.0,0.00019178,2]
[373594224,1753056635878,-782.78,0.00019178,2]
[373594225,1753056635887,-242.0287042,0.00019178,2]
[373594226,1753056635897,-480.0,0.00019178,2]
[373594227,1753056635907,-586.77659689,0.00019178,2]
[373594228,1753056635916,-467.21,0.00019178,2]
[373594229,1753056635925,-762.79,0.00019178,2]
[373594230,1753056635935,-480.0,0.00019178,2]
[373594231,1753056635944,-480.0,0.00019178,2]
[373594232,1753056635959,-2150.38,0.00019178,2]
[373594233,1753056635969,-466.52320049,0.00019178,2]
[373594234,1753056635978,-480.0,0.00019178,2]
[373594235,1753056635988,-480.0,0.00019178,2]
[373594236,1753056635997,-658.74,0.00019178,2]
[373594237,1753056636007,-480.0,0.00019178,2]
[373594238,1753056636017,-480.0,0.00019178,2]
[373594239,1753056636026,-480.0,0.00019178,2]
[373594240,1753056636037,-1266.37,0.00019178,2]
[373594241,1753056636047,-480.0,0.00019178,2]
[373594242,1753056636056,-380.0,0.00019178,2]
[373594243,1753056636065,-480.0,0.00019178,2]
[373594244,1753056636075,-480.0,0.00019178,2]
[373594245,1753056636262,-464.38756091,0.00019178,2]
[373594246,1753056636273,-480.0,0.00019178,2]
[373594247,1753056636283,-480.0,0.00019178,2]
[373594248,1753056636295,-480.0,0.00019178,2]
[373594249,1753056636305,-480.0,0.00019178,2]
[373594250,1753056636314,-480.0,0.00019178,2]
[373594251,1753056636324,-480.0,0.00019178,2]
[373594252,1753056636334,-480.0,0.00019178,2]
[373594253,1753056636343,-480.0,0.00019178,2]
[373594254,1753056636352,-480.0,0.00019178,2]
[373594255,1753056636362,-480.0,0.00019178,2]
[373594256,1753056636372,-480.0,0.00019178,2]
[373594257,1753056636382,-480.0,0.00019178,2]
[373594258,1753056636391,-940.92,0.00019178,2]
[373594259,1753056636401,-480.0,0.00019178,2]
[373594260,1753056636410,-480.0,0.00019178,2]
[373594261,1753056636419,-480.0,0.00019178,2]
[373594262,1753056636428,-480.0,0.00019178,2]
[373594263,1753056636438,-480.0,0.00019178,2]
[373594264,1753056636447,-1132.4,0.00019178,2]
[373594265,1753056636457,-480.0,0.00019178,2]
[373594266,1753056636467,-480.0,0.00019178,2]
[373594267,1753056636476,-480.0,0.00019178,2]
[373594268,1753056636487,-480.0,0.00019178,2]
[373594269,1753056636505,-480.0,0.00019178,2]
[373594270,1753056636515,-300.0,0.00019178,2]
[373594271,1753056636524,-480.0,0.00019178,2]
[373594272,1753056636535,-480.0,0.00019178,2]
[373594273,1753056636544,-480.0,0.00019178,2]
[373594274,1753056636554,-500.0,0.00019178,2]
[373594275,1753056636563,-500.0,0.00019178,2]
[373594276,1753056636572,-500.0,0.00019178,2]
[373594277,1753056636582,-869.13,0.00019178,2]
[373594278,1753056636591,-480.0,0.00019178,2]
[373594279,1753056636600,-733.99,0.00019178,2]
[373594280,1753056636609,-480.0,0.00019178,2]
[373594281,1753056636619,-460.0,0.00019178,2]
[373594282,1753056636628,-480.0,0.00019178,2]
[373594283,1753056636637,-480.0,0.00019178,2]
[373594284,1753056636647,-480.0,0.00019178,2]
[373594285,1753056636656,-480.0,0.00019178,2]